[Event "Romanian Team Blitz Open 2022"]
[Site "Sebes"]
[Date "2022.12.04"]
[Round "7.25"]
[White "Neacsu, Mircea"]
[Black "Ardelean, George-Catalin"]
[Result "0-1"]
[ECO "D05"]
[WhiteElo "1901"]
[BlackElo "2473"]
[Annotator "TA"]
[PlyCount "64"]
[EventDate "2022.12.04"]
[EventType "blitz"]
[EventCountry "ROU"]
[SourceTitle "playchess.com"]
[Source "ChessBase"]
[SourceQuality "1"]
[TimeControl "180+2"]

{[%evp 17,64,-1,10,-45,-46,-52,5,14,61,47,62,0,13,17,10,-35,-26,-47,-30,-48,-46,-56,0,-79,-79,-66,-73,-85,-38,-88,-85,-78,0,-67,0,-80,-80,-121,89,-112,0,-114,-60,-294,-108,-539,-537,-1239,-1195]} 1. d4 {[%emt 0:00:01]} d5 {[%emt 0:00:01]} 2. Nf3 {[%emt 0:03:05]} e6 {[%emt 0:00:02]} 3. e3 {[%emt 0:00:00]} Nf6 {[%emt 0:00:05]} 4. Bd3 {[%emt 0:00:04]} c5 {[%emt 0:00:12]} 5. c3 {[%emt 0:00:02]} Bd6 {[%emt 0:00:18]} 6. Nbd2 {[%emt 0:00:00]} O-O {[%emt 0:00:07]} 7. O-O {[%emt 0:00:00]} Nc6 {[%emt 0:00:05]} 8. dxc5 {[%emt 0:00:00]} Bxc5 {[%emt 0:02:28]} 9. e4 h6 {[%emt 0:00:00]} 10. e5 {[%emt 0:00:00] D05: Colle System with ...e6.} (10. h3 $11) 10... Nd7 $15 {[%emt 0:00:00]} 11. Qe2 {[%emt 0:00:00]} Qc7 {[%emt 0:00:00]} (11... Bb6 $1 $15) 12. Re1 $11 {[%emt 0:00:00] The position is equal.} f5 {[%emt 0:00:00] [#]} (12... Bb6 $11 {was preferrable.}) 13. Nb3 $146 {[%emt 0:00:00]} ({Predecessor:} 13. exf6 Nxf6 14. h3 Bd7 15. Nb3 Bb6 16. Be3 Ne5 17. Nxe5 Qxe5 18. Bxb6 {½-½ (18) Truong,H (1832)-De Lagontrie,J (1978) Paris 2010}) 13... b6 {[%emt 0:00:00][%cal Bb7b6,Bb6c5][%mdl 32]} 14. h4 {[%emt 0:00:00]} (14. Nbd4 $14 Bxd4 15. cxd4) 14... Be7 $1 {[%emt 0:00:00]} 15. h5 {[%emt 0:00:00]} Nc5 {[%emt 0:00:00]} 16. Nxc5 {[%emt 0:00:00]} bxc5 {[%emt 0:00:00]} 17. Bf4 {[%emt 0:00:00]} Qd8 {[%emt 0:00:00]} 18. Rad1 {[%emt 0:00:00]} Qe8 {[%emt 0:00:00]} 19. Nh2 {[%emt 0:00:00]} a5 {[%emt 0:00:00]} (19... Rb8 $15) 20. b3 {[%emt 0:00:00]} (20. g4 $1 $11) 20... a4 $17 {[%emt 0:00:00]} 21. Nf1 {[%emt 0:00:00]} axb3 {[%emt 0:00:00]} 22. axb3 {[%emt 0:00:00]} Na5 {[%emt 0:00:00]} (22... d4 $17 23. Bb5 dxc3) 23. Bc2 {[%emt 0:00:00]} (23. g4 $15) 23... Ba6 {[%emt 0:00:00]} (23... Bb7 {is interesting.} 24. g4 d4 25. gxf5 Qc6) 24. Qf3 {[%emt 0:00:00]} Rb8 {[%emt 0:00:00]} (24... Bb7 $17) 25. Rb1 {[%emt 0:00:00]} (25. g4 $11) 25... Qf7 {[%emt 0:00:00]} (25... Nc6 $15) 26. Ng3 {[%emt 0:00:00]} (26. Ra1 $11 Bd8 27. Nd2) 26... Rb6 {[%emt 0:00:00]} 27. Rb2 {[%emt 0:00:00]} Rfb8 $2 {[%emt 0:00:01] [#]} (27... Nc6 $17 {keeps the pressure on.} 28. Ra2 Bb7) 28. Reb1 $2 {[%emt 0:00:00]} (28. Nxf5 $1 $16 {and life is bright.} Bg5 29. Ra2) 28... Bb7 {[%emt 0:00:06]} (28... Rc8 $17 29. Ra2 Nc6) 29. Qd1 {[%emt 0:00:04]} (29. Nxf5 $1 $11 {keeps the balance.} Bg5 30. Bxg5 hxg5 31. Nd6 Qxf3 32. gxf3) 29... Bc6 {[%emt 0:00:04]} ({Black should play} 29... Rd8 $17 30. Qe1 Ba6) 30. Qd2 $2 {[%emt 0:00:05] [#]} (30. Ra1 $15 Rb5 31. Nf1) 30... Bf8 $2 {[%emt 0:00:00]} (30... Nc4 $1 $19 {[%cal Rc4d2][%mdl 512] and Black stays clearly on top.} 31. bxc4 Rxb2 32. Rxb2 Rxb2) 31. c4 {[%emt 0:00:02][%mdl 8192] [#]} (31. Qe2 $17) 31... Nxc4 $1 $19 {[%emt 0:00:03][%mdl 512]} 32. Ra2 {[%emt 0:00:05]} (32. bxc4 Rxb2) 32... Nxd2 {[%emt 0:00:01] Weighted Error Value: White=1.00/Black=0.49} 0-1

[Event "Romanian Team Blitz Open 2022"]
[Site "Sebes"]
[Date "2022.12.04"]
[Round "7.26"]
[White "Murariu, Andrei"]
[Black "Badau, Iancu-Daniel"]
[Result "1-0"]
[ECO "C42"]
[WhiteElo "2493"]
[BlackElo "1792"]
[Annotator "TA"]
[PlyCount "57"]
[EventDate "2022.12.04"]
[EventType "blitz"]
[EventCountry "ROU"]
[SourceTitle "playchess.com"]
[Source "ChessBase"]
[SourceQuality "1"]
[TimeControl "180+2"]

{[%evp 9,57,101,111,110,207,52,45,48,49,16,57,58,87,91,83,86,91,93,89,93,108,96,121,126,145,83,121,117,195,195,244,195,249,246,244,260,354,359,412,385,497,497,496,481,470,462,560,565,553,539]} 1. e4 {[%emt 0:00:02]} e5 {[%emt 0:00:01]} 2. Nf3 {[%emt 0:00:02]} Nf6 {[%emt 0:00:03]} 3. Nxe5 {[%emt 0:00:07]} Nc6 {[%emt 0:00:01]} 4. Nxc6 {[%emt 0:00:08]} dxc6 {[%emt 0:00:02]} 5. d3 {[%emt 0:00:11]} Bc5 {[%emt 0:00:05] [#] Strongly threatening ...Ng4.} 6. Be2 {[%emt 0:00:31] Against Ng4. C42: Petroff Defence: 3 Nxe5 and unusual White 3rd moves.} h5 {[%emt 0:00:35]} (6... Ng4 $16 7. Bxg4 Qh4) 7. Be3 $2 {[%emt 0:00:28]} (7. c3 $18) 7... Bxe3 $14 {[%emt 0:00:41]} 8. fxe3 {[%emt 0:00:02] White is slightly better.} Ng4 {[%emt 0:00:01]} 9. Qd2 {[%emt 0:00:08]} (9. Bxg4 {simplifies} hxg4 10. g3 Qd6 11. Nc3) 9... Qg5 {[%emt 0:00:49]} 10. Bxg4 {[%emt 0:00:03]} Bxg4 {[%emt 0:00:03]} 11. Nc3 {[%emt 0:00:08]} O-O-O {[%emt 0:00:29]} 12. h3 {[%emt 0:00:07]} Be6 {[%emt 0:00:16]} 13. O-O-O {[%emt 0:00:03]} Qa5 {[%emt 0:00:12] [#]} 14. Kb1 $146 {[%emt 0:00:04]} ({Predecessor:} 14. a3 Rd7 15. Ne2 Qe5 16. Nf4 Rhd8 17. Rhf1 g6 18. Qc3 Qd6 19. Nxe6 Qxe6 20. Rf6 {½-½ (56) Tregubov,P (2539)-Pranav,V (2481) Chess.com INT 2022}) 14... c5 {[%emt 0:00:01]} 15. Qe1 {[%emt 0:00:11]} Rd6 {[%emt 0:00:02]} 16. b3 {[%emt 0:00:30]} Ra6 {[%emt 0:00:02]} 17. Na4 {[%emt 0:00:03]} (17. a4 $142) 17... Qb5 {[%emt 0:00:02]} 18. c4 {[%emt 0:00:12]} Qc6 {[%emt 0:00:07]} (18... Qb4 $16 {was called for.}) 19. Qg3 $18 {[%emt 0:00:15]} Rxa4 {[%emt 0:00:02]} (19... Rg8 {keeps fighting.} 20. Qg5 Qd6 21. Qxh5 (21. Nxc5 f6 $11) 21... b6) 20. bxa4 {[%emt 0:00:02]} Qxa4 {[%emt 0:00:00]} (20... Rg8 {was worth a try.} 21. Qe5 Qb6+ 22. Ka1 Qa5) 21. Qxg7 {[%emt 0:00:04]} Rd8 {[%emt 0:00:02][%cal Oe6c4]} 22. Qc3 {[%emt 0:00:09]} b5 {[%emt 0:00:01]} 23. Qb3 {[%emt 0:00:04]} Qxb3+ {[%emt 0:00:08]} 24. axb3 {[%emt 0:00:02] KRR-KRB} b4 {[%emt 0:00:01]} 25. Rhf1 {[%emt 0:00:03] White is clearly winning.} Rg8 {[%emt 0:00:02]} 26. Rf2 {[%emt 0:00:02]} Rg3 {[%emt 0:00:00]} 27. Re1 {[%emt 0:00:03]} h4 {[%emt 0:00:01]} 28. Ree2 {[%emt 0:00:01]} a5 {[%emt 0:00:01]} 29. Rf4 {[%emt 0:00:05] Weighted Error Value: White=0.17 (very precise) /Black=0.35} 1-0

[Event "Romanian Team Blitz Open 2022"]
[Site "Sebes"]
[Date "2022.12.04"]
[Round "7.27"]
[White "Denes, Attila-Norbert"]
[Black "Grecescu, Gabriel-Andrei"]
[Result "0-1"]
[ECO "B25"]
[WhiteElo "1755"]
[BlackElo "2388"]
[Annotator "TA"]
[PlyCount "45"]
[EventDate "2022.12.04"]
[EventType "blitz"]
[EventCountry "ROU"]
[SourceTitle "playchess.com"]
[Source "ChessBase"]
[SourceQuality "1"]
[TimeControl "180+2"]

{[%evp 15,45,10,9,-38,-39,-34,-35,-40,-45,-103,-103,-99,-68,-122,-98,-171,-129,-153,-125,-172,-152,-180,-116,-256,-168,-301,-273,-276,-297,-970,-970,-1008]} 1. e4 {[%emt 0:00:02]} c5 {[%emt 0:00:03]} 2. Nc3 {[%emt 0:00:00]} Nc6 {[%emt 0:00:01]} 3. f4 {[%emt 0:00:01]} g6 {[%emt 0:00:01]} 4. Nf3 {[%emt 0:00:01]} Bg7 {[%emt 0:00:01]} 5. g3 {[%emt 0:00:17]} d6 {[%emt 0:00:06]} 6. d3 {[%emt 0:00:18]} e6 {[%emt 0:00:01]} 7. Be3 {[%emt 0:00:11]} Nd4 {[%emt 0:00:03]} 8. Bg2 {[%emt 0:00:30]} Ne7 {[%emt 0:00:02]} 9. Bxd4 {[%emt 0:00:08] B25: Closed Sicilian: 3 g3, lines without early Be3.} (9. O-O $11) 9... cxd4 $15 {[%emt 0:00:03]} 10. Ne2 {[%emt 0:00:07]} e5 {[%emt 0:00:05]} 11. Qd2 {[%emt 0:00:35] Black is slightly better.} O-O {[%emt 0:00:03] [#]} 12. fxe5 $146 {[%emt 0:00:11]} (12. O-O $15) ({Predecessor:} 12. f5 d5 13. g4 dxe4 14. dxe4 Qb6 15. O-O-O Bd7 16. h4 Rfc8 17. Ng3 Nc6 18. a3 {0-1 (25) Klein,O-Fuess,F Traben Trarbach 1993}) 12... dxe5 $17 {[%emt 0:00:02]} 13. O-O {[%emt 0:00:02]} h6 {[%emt 0:00:07]} 14. h3 {[%emt 0:00:14]} (14. c3 $15) 14... Be6 {[%emt 0:00:04]} 15. Nh2 {[%emt 0:00:03]} (15. c3 $17 {was worth a try.}) 15... Qd7 {[%emt 0:00:09]} 16. g4 {[%emt 0:00:10]} Rac8 {[%emt 0:00:18]} 17. Ng3 {[%emt 0:00:13]} (17. c3 $17) 17... Rc7 {[%emt 0:00:19]} 18. Rac1 {[%emt 0:00:01]} Qa4 {[%emt 0:00:13]} ({Black should play} 18... Rfc8 $19 {Strongly threatening ...Qa4.} 19. Nf3 Bxa2) 19. h4 {[%emt 0:00:14] Loses the game.} (19. Nf5 $17) 19... Qxa2 {[%emt 0:00:10]} ({And not} 19... Bxa2 20. Ra1 $15) 20. g5 {[%emt 0:00:13]} (20. Nf5 $142 gxf5 21. gxf5) 20... h5 {[%emt 0:00:04]} ({Worse is} 20... Qxb2 21. gxh6 Bh8 22. Nf3 $17) 21. Ra1 {[%emt 0:00:04]} Qxb2 {[%emt 0:00:03]} 22. Rxa7 $2 {[%emt 0:00:03] [#]} (22. Rfb1 Qxc2 23. Qxc2 Rxc2 24. Rxa7) 22... Rxc2 $19 {[%emt 0:00:03]} 23. Qxc2 {[%emt 0:00:10] Weighted Error Value: White=0.82/Black=0.27 (precise)} 0-1

[Event "Romanian Team Blitz Open 2022"]
[Site "Sebes"]
[Date "2022.12.04"]
[Round "7.28"]
[White "Cnejev, Vladimir-Alexandru"]
[Black "Serban, Cristian-Stefan"]
[Result "1-0"]
[ECO "C78"]
[WhiteElo "2293"]
[BlackElo "2131"]
[Annotator "TA"]
[PlyCount "51"]
[EventDate "2022.12.04"]
[EventType "blitz"]
[EventCountry "ROU"]
[SourceTitle "playchess.com"]
[Source "ChessBase"]
[SourceQuality "1"]
[TimeControl "180+2"]

{[%evp 17,50,77,71,41,346,349,415,398,420,348,348,348,348,348,341,331,314,297,434,414,495,523,741,608,1387,1354,1774,1788,1765,1753,1768,1773,29998,29999,29999]} 1. e4 {[%emt 0:00:02]} e5 {[%emt 0:00:00]} 2. Nf3 {[%emt 0:00:01]} Nc6 {[%emt 0:00:02]} 3. Bb5 {[%emt 0:00:00]} a6 {[%emt 0:00:02]} 4. Ba4 {[%emt 0:00:01]} b5 {[%emt 0:00:06]} 5. Bb3 {[%emt 0:00:00]} Nf6 {[%emt 0:00:04]} 6. O-O {[%emt 0:00:02]} Bc5 {[%emt 0:00:10]} 7. c3 {[%emt 0:00:01]} d6 {[%emt 0:00:04]} 8. d4 {[%emt 0:00:01]} exd4 {[%emt 0:00:15]} 9. cxd4 {[%emt 0:00:01]} Bb6 {[%emt 0:00:03]} 10. h3 {[%emt 0:00:10] [#] Inhibits Bg4. C78: Ruy Lopez: Archangelsk and Möller Defences.} (10. Nc3 $5 {[%cal Rc1g5]}) 10... Be6 $146 {[%emt 0:00:02][%mdl 8192] [#]} (10... Bb7 $14) ({Predecessor:} 10... h6 11. Re1 O-O 12. Nc3 Ne7 13. e5 Ne8 14. Bf4 Ng6 15. Bg3 dxe5 16. dxe5 Bf5 17. Nd5 c6 18. Nxb6 Qxb6 19. Qd4 c5 {1-0 (50) Vasli,A (2384)-Liyanage,R (2203) Chess.com INT 2021}) 11. d5 $18 {[%emt 0:00:02]} Bd7 {[%emt 0:00:23]} 12. dxc6 {[%emt 0:00:01] White is winning.} Bxc6 {[%emt 0:00:01]} 13. Bd5 {[%emt 0:00:09]} Bxd5 {[%emt 0:00:18]} 14. exd5 {[%emt 0:00:01]} O-O {[%emt 0:00:02]} 15. Bg5 {[%emt 0:00:03]} h6 {[%emt 0:00:02]} 16. Bh4 {[%emt 0:00:01]} Re8 {[%emt 0:00:03]} 17. Nc3 {[%emt 0:00:04]} Rc8 {[%emt 0:01:08]} (17... g5 $142 18. Bg3 b4) 18. Qd3 {[%emt 0:00:06]} c5 {[%emt 0:00:08]} 19. dxc6 {[%emt 0:00:03]} Rxc6 {[%emt 0:00:02]} 20. Rae1 {[%emt 0:00:12]} Bc5 {[%emt 0:00:28]} 21. Nd5 {[%emt 0:00:08]} Nxd5 {[%emt 0:00:05]} 22. Bxd8 {[%emt 0:00:02]} Rxd8 {[%emt 0:00:02]} 23. Qxd5 {[%emt 0:00:02]} Rcc8 {[%emt 0:00:03]} 24. Re7 {[%emt 0:00:02]} Re8 {[%emt 0:00:07]} 25. Qxf7+ {[%emt 0:00:03]} Kh8 {[%emt 0:00:02]} 26. Qxg7# {[%emt 0:00:02] Black got outplayed after the opening.   Weighted Error Value: White=0.31/Black=1.14} 1-0

[Event "Romanian Team Blitz Open 2022"]
[Site "Sebes"]
[Date "2022.12.04"]
[Round "7.29"]
[White "Butuza, Stefan Aurelian"]
[Black "Macarie, Maia-Elisabeta"]
[Result "0-1"]
[ECO "B22"]
[WhiteElo "1529"]
[BlackElo "1100"]
[Annotator "NA RC COMBH"]
[PlyCount "126"]
[EventDate "2022.12.04"]
[EventType "blitz"]
[EventCountry "ROU"]
[SourceTitle "playchess.com"]
[Source "ChessBase"]
[SourceQuality "1"]
[TimeControl "180+2"]

1. e4 {[%emt 0:00:01]} c5 {[%emt 0:00:01]} 2. c3 {[%emt 0:00:01]} Nc6 {[%emt 0:00:02]} 3. d4 {[%emt 0:00:01]} cxd4 {[%emt 0:00:01]} 4. cxd4 {[%emt 0:00:01]} e6 {[%emt 0:00:01]} 5. Nf3 {[%emt 0:00:03]} a6 {[%emt 0:00:03]} 6. Nc3 {[%emt 0:00:02]} d5 {[%emt 0:00:03]} 7. exd5 {[%emt 0:00:07]} exd5 {[%emt 0:00:03]} 8. Be3 {[%emt 0:00:02]} Nf6 {[%emt 0:00:01]} 9. Be2 {[%emt 0:00:04]} Be7 {[%emt 0:00:03]} 10. O-O {[%emt 0:00:01]} O-O {[%emt 0:00:03]} 11. a3 {[%emt 0:00:06]} Bd7 {[%emt 0:00:04]} 12. Qd3 {[%emt 0:00:06]} Re8 {[%emt 0:00:01]} 13. Rac1 {[%emt 0:00:04]} Qc8 {[%emt 0:00:02]} 14. Na4 {[%emt 0:00:33]} Bf5 {[%emt 0:00:10]} 15. Qb3 {[%emt 0:00:19]} Qd7 {[%emt 0:00:07]} 16. Nb6 {[%emt 0:00:04]} Qc7 {[%emt 0:00:20]} 17. Nxa8 {[%emt 0:00:04]} Rxa8 {[%emt 0:00:01]} 18. Ne5 {[%emt 0:00:09]} Bd6 {[%emt 0:00:12]} 19. f4 {[%emt 0:00:19]} Ne4 {[%emt 0:00:17]} 20. Bd3 {[%emt 0:00:30]} Rc8 {[%emt 0:00:28]} 21. Nxc6 {[%emt 0:00:02]} bxc6 {[%emt 0:00:03]} 22. Bxa6 {[%emt 0:00:04]} Rb8 {[%emt 0:01:40]} 23. Qa2 {[%emt 0:00:09]} Qb6 {[%emt 0:00:00]} 24. Bd3 {[%emt 0:00:13]} Qxb2 {[%emt 0:00:00]} 25. Qxb2 {[%emt 0:00:01]} Rxb2 {[%emt 0:00:00]} 26. Bxe4 {[%emt 0:00:04]} Bxe4 {[%emt 0:00:00]} 27. Rxc6 {[%emt 0:00:03]} Rxg2+ {[%emt 0:00:00]} 28. Kh1 {[%emt 0:00:04]} Rc2+ {[%emt 0:00:00]} 29. Kg1 {[%emt 0:00:02]} Rxc6 {[%emt 0:00:14]} 30. Ra1 {[%emt 0:00:05]} Ra6 {[%emt 0:00:00]} 31. a4 {[%emt 0:00:01]} h6 {[%emt 0:00:00]} 32. Kf2 {[%emt 0:00:01]} Kh7 {[%emt 0:00:00]} 33. Ke2 {[%emt 0:00:02]} Ra5 {[%emt 0:00:00]} 34. Kd2 {[%emt 0:00:00]} Kg6 {[%emt 0:00:00]} 35. Kc3 {[%emt 0:00:02]} Kf5 {[%emt 0:00:00]} 36. Kb3 {[%emt 0:00:04]} g5 {[%emt 0:00:00]} 37. fxg5 {[%emt 0:00:02]} hxg5 {[%emt 0:00:00]} 38. Rf1+ {[%emt 0:00:01]} Kg6 {[%emt 0:00:00]} 39. Rg1 {[%emt 0:00:03]} f6 {[%emt 0:00:00]} 40. h4 {[%emt 0:00:01]} Ra8 {[%emt 0:00:00]} 41. hxg5 {[%emt 0:00:43]} Rb8+ {[%emt 0:00:24]} 42. Ka2 {[%emt 0:00:00]} f5 {[%emt 0:00:00]} 43. Rc1 {[%emt 0:00:00]} Bg3 {[%emt 0:00:00]} 44. Rc6+ {[%emt 0:00:00]} Kh5 {[%emt 0:00:00]} 45. Rh6+ {[%emt 0:00:00]} Kg4 {[%emt 0:00:00]} 46. g6 {[%emt 0:00:00]} f4 {[%emt 0:00:00]} 47. Bd2 {[%emt 0:00:00]} Rg8 {[%emt 0:00:01]} 48. a5 {[%emt 0:00:00]} f3 {[%emt 0:00:06]} 49. a6 {[%emt 0:00:11]} f2 {[%emt 0:00:03]} 50. a7 {[%emt 0:00:04]} f1=Q {[%emt 0:00:03]} 51. g7 {[%emt 0:00:02]} Qc4+ {[%emt 0:00:02]} 52. Kb2 {[%emt 0:00:01]} Qd3 {[%emt 0:00:01]} 53. Rh8 {[%emt 0:00:03]} Qc2+ {[%emt 0:00:02]} 54. Ka3 {[%emt 0:00:01]} Qd3+ {[%emt 0:00:02]} 55. Kb2 {[%emt 0:00:01]} Qb5+ {[%emt 0:00:08]} 56. Ka2 {[%emt 0:00:04]} Qa6+ {[%emt 0:00:00]} 57. Kb2 {[%emt 0:00:02]} Qb6+ {[%emt 0:00:00]} 58. Ka2 {[%emt 0:00:01]} Qb1+ {[%emt 0:00:00]} 59. Ka3 {[%emt 0:00:02]} Bd6+ {[%emt 0:00:00]} 60. Ka4 {[%emt 0:00:01]} Qa1+ {[%emt 0:00:02]} 61. Kb5 {[%emt 0:00:02]} Bd3+ {[%emt 0:00:02]} 62. Kc6 {[%emt 0:00:01]} Qa6+ {[%emt 0:00:02]} 63. Kd7 {[%emt 0:00:02]} Bf5# {[%emt 0:00:10]} 0-1

[Event "Romanian Team Blitz Open 2022"]
[Site "Sebes"]
[Date "2022.12.04"]
[Round "7.30"]
[White "Burja-Udrea, Razvan-Andrei"]
[Black "Tatar, Marius Lucian"]
[Result "1-0"]
[ECO "C54"]
[WhiteElo "1365"]
[BlackElo "1405"]
[Annotator "NA RC COMBH"]
[PlyCount "85"]
[EventDate "2022.12.04"]
[EventType "blitz"]
[EventCountry "ROU"]
[SourceTitle "playchess.com"]
[Source "ChessBase"]
[SourceQuality "1"]
[TimeControl "180+2"]

1. e4 {[%emt 0:00:01]} e5 {[%emt 0:00:01]} 2. Nf3 {[%emt 0:00:01]} Nc6 {[%emt 0:00:00]} 3. Bc4 {[%emt 0:00:01]} Bc5 {[%emt 0:00:02]} 4. c3 {[%emt 0:00:01]} Nf6 {[%emt 0:00:01]} 5. d4 {[%emt 0:00:00]} exd4 {[%emt 0:00:01]} 6. e5 {[%emt 0:00:01]} d5 {[%emt 0:00:02]} 7. exf6 {[%emt 0:00:02]} dxc4 {[%emt 0:00:02]} 8. fxg7 {[%emt 0:00:03]} Rg8 {[%emt 0:00:04]} 9. cxd4 {[%emt 0:00:10]} Nxd4 {[%emt 0:00:08]} 10. Nxd4 {[%emt 0:00:02]} Qxd4 {[%emt 0:00:03]} 11. Qe2+ {[%emt 0:00:01]} Be6 {[%emt 0:00:03]} 12. Be3 {[%emt 0:00:02]} Qd6 {[%emt 0:00:07]} 13. Bxc5 {[%emt 0:00:03]} Qxc5 {[%emt 0:00:01]} 14. Nc3 {[%emt 0:00:01]} O-O-O {[%emt 0:00:07]} 15. Qe3 {[%emt 0:00:12]} Qxe3+ {[%emt 0:00:04]} 16. fxe3 {[%emt 0:00:01]} Rxg7 {[%emt 0:00:02]} 17. Kf2 {[%emt 0:00:01]} Rd3 {[%emt 0:00:07]} 18. Rad1 {[%emt 0:00:03]} Rg8 {[%emt 0:00:17]} 19. Rxd3 {[%emt 0:00:05]} cxd3 {[%emt 0:00:00]} 20. Rd1 {[%emt 0:00:01]} Rd8 {[%emt 0:00:02]} 21. e4 {[%emt 0:00:08]} Bg4 {[%emt 0:00:10]} 22. Rd2 {[%emt 0:00:02]} c5 {[%emt 0:00:05]} 23. b3 {[%emt 0:00:01]} f5 {[%emt 0:00:07]} 24. h3 {[%emt 0:00:10]} Bh5 {[%emt 0:00:20]} 25. exf5 {[%emt 0:00:01]} Bf7 {[%emt 0:00:05]} 26. Ke3 {[%emt 0:00:07]} c4 {[%emt 0:00:01]} 27. bxc4 {[%emt 0:00:23]} Bxc4 {[%emt 0:00:02]} 28. Ne4 {[%emt 0:00:08]} Re8 {[%emt 0:00:05]} 29. Kd4 {[%emt 0:00:01]} Kc7 {[%emt 0:00:15]} 30. Kxc4 {[%emt 0:00:33]} Rxe4+ {[%emt 0:00:02]} 31. Kd5 {[%emt 0:00:07]} Rf4 {[%emt 0:00:15]} 32. Ke5 {[%emt 0:00:00]} Ra4 {[%emt 0:00:05]} 33. Rxd3 {[%emt 0:00:02]} Rxa2 {[%emt 0:00:03]} 34. f6 {[%emt 0:00:02]} Rxg2 {[%emt 0:00:13]} 35. f7 {[%emt 0:00:19]} Rf2 {[%emt 0:00:02]} 36. Ke6 {[%emt 0:00:01]} a5 {[%emt 0:00:04]} 37. Rd5 {[%emt 0:00:01]} b6 {[%emt 0:00:08]} 38. Rf5 {[%emt 0:00:02]} Re2+ {[%emt 0:00:06]} 39. Kf6 {[%emt 0:00:02]} a4 {[%emt 0:00:17]} 40. f8=Q {[%emt 0:00:02]} b5 {[%emt 0:00:05]} 41. Qc5+ {[%emt 0:00:04]} Kd8 {[%emt 0:00:06]} 42. Rd5+ {[%emt 0:00:03]} Ke8 {[%emt 0:00:03]} 43. Qc8# {[%emt 0:01:17]} 1-0

[Event "Romanian Team Blitz Open 2022"]
[Site "Sebes"]
[Date "2022.12.04"]
[Round "7.32"]
[White "Simina, Andrei-Petru"]
[Black "Olariu-Chilut, Sofia"]
[Result "1-0"]
[ECO "D06"]
[WhiteElo "1033"]
[BlackElo "1065"]
[Annotator "NA RC COMBH"]
[PlyCount "42"]
[EventDate "2022.12.04"]
[EventType "blitz"]
[EventCountry "ROU"]
[SourceTitle "playchess.com"]
[Source "ChessBase"]
[SourceQuality "1"]
[TimeControl "180+2"]

1. d4 {[%emt 0:00:01]} d5 {[%emt 0:00:01]} 2. c4 {[%emt 0:00:00]} Nf6 {[%emt 0:00:01]} 3. cxd5 {[%emt 0:00:01]} Nxd5 {[%emt 0:00:02]} 4. Nf3 {[%emt 0:00:03]} Nf6 {[%emt 0:00:01]} 5. Bf4 {[%emt 0:00:03]} e6 {[%emt 0:00:04]} 6. e3 {[%emt 0:00:02]} Be7 {[%emt 0:00:01]} 7. Nc3 {[%emt 0:00:02]} Nbd7 {[%emt 0:00:02]} 8. Nb5 {[%emt 0:00:11]} O-O {[%emt 0:00:43]} 9. Nxc7 {[%emt 0:00:23]} Rb8 {[%emt 0:00:46]} 10. Nxe6 {[%emt 0:00:09]} Qa5+ {[%emt 0:00:02]} 11. Nd2 {[%emt 0:00:21]} fxe6 {[%emt 0:00:02]} 12. Bxb8 Nxb8 {[%emt 0:00:02]} 13. Be2 {[%emt 0:00:21]} Nc6 {[%emt 0:00:26]} 14. O-O {[%emt 0:00:04]} Bd7 {[%emt 0:00:07]} 15. Nc4 {[%emt 0:00:05]} Qd8 {[%emt 0:00:08]} 16. Qb3 {[%emt 0:00:11]} Ne4 {[%emt 0:00:30]} 17. Qxb7 {[%emt 0:00:14]} Qc8 {[%emt 0:00:10]} 18. Qb3 {[%emt 0:00:12]} Qb8 {[%emt 0:00:09]} 19. Qc2 {[%emt 0:00:03]} Nf6 {[%emt 0:00:04]} 20. Bf3 {[%emt 0:00:09]} Qc7 {[%emt 0:00:02]} 21. Ne5 {[%emt 0:00:11]} Qd8 {[%emt 0:00:21]} 1-0

[Event "Romanian Team Blitz Open 2022"]
[Site "Sebes"]
[Date "2022.12.04"]
[Round "8.1"]
[White "Ardelean, George-Catalin"]
[Black "Lupulescu, Constantin"]
[Result "1-0"]
[ECO "D00"]
[WhiteElo "2473"]
[BlackElo "2591"]
[Annotator "TA"]
[PlyCount "21"]
[EventDate "2022.12.04"]
[EventType "blitz"]
[EventCountry "ROU"]
[SourceTitle "playchess.com"]
[Source "ChessBase"]
[SourceQuality "1"]
[TimeControl "180+2"]

{[%evp 9,21,0,0,0,0,0,0,-10,0,0,86,81,464,465]} 1. d4 {[%emt 0:00:01]} d5 {[%emt 0:00:02]} 2. Bf4 {[%emt 0:00:01]} c5 {[%emt 0:00:01][%cal Bc7c5,Bc5d4][%mdl 32]} 3. Nc3 {[%emt 0:00:00]} Nc6 {[%emt 0:00:15]} 4. e4 {[%emt 0:00:01]} cxd4 {[%emt 0:00:08]} 5. exd5 {[%emt 0:00:01]} dxc3 {[%emt 0:00:10]} 6. dxc6 {[%emt 0:00:01] D00: 1 d4 d5: Unusual lines.} Qxd1+ {[%emt 0:00:11]} (6... cxb2 $2 7. Qxd8+ Kxd8 8. Rd1+ $18) 7. Rxd1 {[%emt 0:00:03] [#] White wants to mate with cxb7.} bxc6 {[%emt 0:00:03]} 8. Bc7 {[%emt 0:00:43][%csl Gc7][%cal Rd1d8]} Bb7 {[%emt 0:00:11]} 9. bxc3 {[%emt 0:00:06] [#]} Rc8 $146 {[%emt 0:00:04]} (9... Nf6 $11 {keeps the balance.}) ({Predecessor:} 9... Nf6 10. Nf3 Nd5 11. Rxd5 Rc8 12. Ra5 Rxc7 13. Rxa7 Kd8 14. Ne5 e6 15. Ba6 Bd6 16. Bxb7 Bxe5 {½-½ (45) Malassagne,R (2285)-Salomon,J (2502) Paleochora 2021}) 10. Ba5 $16 {[%emt 0:00:00] Black must now prevent Rb1. White is much more active.} e5 $2 {[%emt 0:00:04][%mdl 8192] [#]} (10... Ra8 $16) 11. Rb1 {[%emt 0:00:07] White took control after the opening.   Weighted Error Value: White=0.00 (flawless) /Black=0.98} 1-0